[Event "Titled Tuesday Blitz May 2 Late 2023"]
[White "Dzida, Kamil"]
[Black "Bruedigam, Martin"]
[WhiteFideId "21828652"]
[BlackFideId "24608033"]
[WhiteElo "2139"]
[BlackElo "2331"]
[Result "1-0"]
[Round "04"]
[TimeControl "180+2"]
[Date "2023.05.02"]
[WhiteClock "0:00:30"]
[BlackClock "0:00:07"]

1. e4 {[%clk 0:03:00]}  c6 {[%clk 0:03:00]} 2. d4 {[%clk 0:02:59]}  d5 {[%clk 0:03:00]} 3. e5 {[%clk 0:02:59]}  Bf5 {[%clk 0:03:00]} 4. h4 {[%clk 0:02:56]}  Qc7 {[%clk 0:02:59]} 5. g4 {[%clk 0:02:45]}  Bd7 {[%clk 0:02:58]} 6. h5 {[%clk 0:02:45]}  c5 {[%clk 0:02:57]} 7. Nc3 {[%clk 0:02:36]}  cxd4 {[%clk 0:02:57]} 8. Nce2 {[%clk 0:02:33]}  Qxe5 {[%clk 0:02:53]} 9. Nf3 {[%clk 0:02:30]}  Qc7 {[%clk 0:02:53]} 10. Bf4 {[%clk 0:02:27]}  Qa5+ {[%clk 0:02:51]} 11. Bd2 {[%clk 0:02:26]}  Qb6 {[%clk 0:02:50]} 12. Nexd4 {[%clk 0:02:23]}  Bxg4 {[%clk 0:02:42]} 13. Bb5+ {[%clk 0:02:07]}  Nc6 {[%clk 0:02:36]} 14. Be3 {[%clk 0:02:02]}  Qa5+ {[%clk 0:02:01]} 15. c3 {[%clk 0:01:57]}  Rc8 {[%clk 0:01:59]} 16. Qb3 {[%clk 0:01:47]}  Bxf3 {[%clk 0:01:55]} 17. Nxf3 {[%clk 0:01:41]}  e6 {[%clk 0:01:49]} 18. h6 {[%clk 0:01:37]}  Ne7 {[%clk 0:01:41]} 19. hxg7 {[%clk 0:01:23]}  Bxg7 {[%clk 0:01:42]} 20. Rg1 {[%clk 0:01:22]}  Bf6 {[%clk 0:01:40]} 21. O-O-O {[%clk 0:01:12]}  Nf5 {[%clk 0:01:24]} 22. Bg5 {[%clk 0:00:56]}  Bg7 {[%clk 0:01:14]} 23. Rxd5 {[%clk 0:00:42]}  exd5 {[%clk 0:00:21]} 24. Qxd5 {[%clk 0:00:42]}  O-O {[%clk 0:00:13]} 25. Qxf5 {[%clk 0:00:41]}  Kh8 {[%clk 0:00:07]} 26. Bf6 {[%clk 0:00:30]}  Rg8 {[%clk 0:00:07]} 27. Rh1 {[%clk 0:00:30]} 1-0


[Site "https://www.chess.com"]

[Event "Titled Tuesday Blitz May 2 Late 2023"]
[White "Ocelak, Jakub"]
[Black "Domingo Nunez, Ruben"]
[WhiteFideId "23707933"]
[BlackFideId "22245570"]
[WhiteElo "2044"]
[BlackElo "2404"]
[Result "0-1"]
[Round "04"]
[TimeControl "180+2"]
[Date "2023.05.02"]
[WhiteClock "0:00:12"]
[BlackClock "0:00:05"]

1. b3 {[%clk 0:03:00]}  a5 {[%clk 0:02:56]} 2. a4 {[%clk 0:02:59]}  h5 {[%clk 0:02:54]} 3. Bb2 {[%clk 0:02:57]}  Nc6 {[%clk 0:02:54]} 4. Nf3 {[%clk 0:02:56]}  d6 {[%clk 0:02:53]} 5. h3 {[%clk 0:02:56]}  e5 {[%clk 0:02:53]} 6. d4 {[%clk 0:02:52]}  e4 {[%clk 0:02:53]} 7. Nfd2 {[%clk 0:02:52]}  e3 {[%clk 0:02:54]} 8. Nf3 {[%clk 0:02:47]}  exf2+ {[%clk 0:02:54]} 9. Kxf2 {[%clk 0:02:47]}  Nf6 {[%clk 0:02:55]} 10. Nbd2 {[%clk 0:02:46]}  d5 {[%clk 0:02:51]} 11. e3 {[%clk 0:02:44]}  Bd6 {[%clk 0:02:51]} 12. Bd3 {[%clk 0:02:42]}  h4 {[%clk 0:02:44]} 13. Rf1 {[%clk 0:02:40]}  Qe7 {[%clk 0:02:42]} 14. c4 {[%clk 0:02:12]}  Bg3+ {[%clk 0:02:28]} 15. Ke2 {[%clk 0:02:10]}  O-O {[%clk 0:02:09]} 16. Ba3 {[%clk 0:01:52]}  Nb4 {[%clk 0:02:02]} 17. Bxb4 {[%clk 0:01:52]}  axb4 {[%clk 0:02:00]} 18. Rh1 {[%clk 0:01:41]}  Re8 {[%clk 0:01:58]} 19. Nf1 {[%clk 0:01:41]}  Bf4 {[%clk 0:01:51]} 20. Qd2 {[%clk 0:01:37]}  Nh5 {[%clk 0:01:12]} 21. Kd1 {[%clk 0:01:20]}  Bh6 {[%clk 0:01:04]} 22. Kc2 {[%clk 0:01:10]}  dxc4 {[%clk 0:01:03]} 23. Bxc4 {[%clk 0:01:09]}  Bf5+ {[%clk 0:01:03]} 24. Kb2 {[%clk 0:01:08]}  c5 {[%clk 0:00:47]} 25. Ne5 {[%clk 0:01:00]}  Be6 {[%clk 0:00:45]} 26. Qe2 {[%clk 0:00:57]}  Nf6 {[%clk 0:00:40]} 27. Bxe6 {[%clk 0:00:46]}  Qxe6 {[%clk 0:00:40]} 28. Qc4 {[%clk 0:00:46]}  Qe7 {[%clk 0:00:30]} 29. Rd1 {[%clk 0:00:43]}  cxd4 {[%clk 0:00:25]} 30. exd4 {[%clk 0:00:42]}  Ne4 {[%clk 0:00:26]} 31. Nh2 {[%clk 0:00:35]}  Nf2 {[%clk 0:00:19]} 32. Rdf1 {[%clk 0:00:33]}  Rac8 {[%clk 0:00:11]} 33. Qxf7+ {[%clk 0:00:30]}  Qxf7 {[%clk 0:00:10]} 34. Nxf7 {[%clk 0:00:30]}  Re2+ {[%clk 0:00:08]} 35. Kb1 {[%clk 0:00:31]}  Nd3 {[%clk 0:00:05]} 36. Nxh6+ {[%clk 0:00:29]}  gxh6 {[%clk 0:00:06]} 37. Rf3 {[%clk 0:00:17]}  Rb2+ {[%clk 0:00:06]} 38. Ka1 {[%clk 0:00:17]}  Rxb3 {[%clk 0:00:05]} 39. Rd1 {[%clk 0:00:12]}  Rcc3 {[%clk 0:00:06]} 40. Ng4 {[%clk 0:00:11]}  Ra3+ {[%clk 0:00:05]} 41. Kb1 {[%clk 0:00:12]}  Rcb3+ {[%clk 0:00:04]} 42. Kc2 {[%clk 0:00:12]}  Rb2# {[%clk 0:00:05]} 0-1


[Site "https://www.chess.com"]

[Event "Titled Tuesday Blitz May 2 Late 2023"]
[White "Cueto, Jonny"]
[Black "Muradli, Mahammad"]
[WhiteFideId "3300145"]
[BlackFideId "13409301"]
[WhiteElo "2234"]
[BlackElo "2558"]
[Result "0-1"]
[Round "04"]
[TimeControl "180+2"]
[Date "2023.05.02"]
[WhiteClock "0:00:19"]
[BlackClock "0:00:48"]

1. d4 {[%clk 0:01:11]}  Nf6 {[%clk 0:02:58]} 2. Bf4 {[%clk 0:01:11]}  d6 {[%clk 0:01:12]} 3. Nc3 {[%clk 0:01:08]}  Nbd7 {[%clk 0:01:13]} 4. Nf3 {[%clk 0:01:07]}  c6 {[%clk 0:01:09]} 5. e4 {[%clk 0:01:03]}  Qc7 {[%clk 0:01:04]} 6. Be2 {[%clk 0:01:03]}  e5 {[%clk 0:01:03]} 7. Be3 {[%clk 0:01:04]}  Be7 {[%clk 0:01:00]} 8. h3 {[%clk 0:01:04]}  O-O {[%clk 0:01:01]} 9. O-O {[%clk 0:01:04]}  a6 {[%clk 0:01:00]} 10. Re1 {[%clk 0:01:04]}  b5 {[%clk 0:01:00]} 11. a3 {[%clk 0:01:04]}  Bb7 {[%clk 0:00:59]} 12. Qd2 {[%clk 0:01:05]}  Rfe8 {[%clk 0:00:57]} 13. Rad1 {[%clk 0:01:04]}  Rad8 {[%clk 0:00:55]} 14. Bf1 {[%clk 0:01:01]}  Bf8 {[%clk 0:00:54]} 15. Qc1 {[%clk 0:00:54]}  exd4 {[%clk 0:00:52]} 16. Bxd4 {[%clk 0:00:55]}  c5 {[%clk 0:00:52]} 17. Bxf6 {[%clk 0:00:53]}  Nxf6 {[%clk 0:00:53]} 18. Bd3 {[%clk 0:00:41]}  c4 {[%clk 0:00:51]} 19. Bf1 {[%clk 0:00:20]}  Nxe4 {[%clk 0:00:51]} 20. Nxe4 {[%clk 0:00:19]}  Bxe4 {[%clk 0:00:48]} 0-1


[Site "https://www.chess.com"]

[Event "Titled Tuesday Blitz May 2 Late 2023"]
[White "Sokolovsky, Yahli"]
[Black "Todorovic, Bojan"]
[WhiteFideId "2820242"]
[BlackFideId "917087"]
[WhiteElo "2316"]
[BlackElo "2266"]
[Result "1-0"]
[Round "04"]
[TimeControl "180+2"]
[Date "2023.05.02"]
[WhiteClock "0:01:48"]
[BlackClock "0:00:40"]

1. b3 {[%clk 0:03:00]}  d5 {[%clk 0:02:56]} 2. Bb2 {[%clk 0:03:01]}  Bg4 {[%clk 0:02:52]} 3. h3 {[%clk 0:03:01]}  Bh5 {[%clk 0:02:50]} 4. Nf3 {[%clk 0:03:02]}  Nd7 {[%clk 0:02:46]} 5. e3 {[%clk 0:03:02]}  c6 {[%clk 0:02:37]} 6. d4 {[%clk 0:03:02]}  e6 {[%clk 0:02:33]} 7. Be2 {[%clk 0:03:03]}  Ngf6 {[%clk 0:02:30]} 8. Ne5 {[%clk 0:03:02]}  Bxe2 {[%clk 0:02:25]} 9. Qxe2 {[%clk 0:03:03]}  Bd6 {[%clk 0:02:22]} 10. Nd2 {[%clk 0:03:02]}  O-O {[%clk 0:02:18]} 11. O-O {[%clk 0:03:01]}  Ne4 {[%clk 0:01:55]} 12. Nxe4 {[%clk 0:03:00]}  dxe4 {[%clk 0:01:53]} 13. c4 {[%clk 0:02:43]}  f5 {[%clk 0:01:42]} 14. Nxd7 {[%clk 0:02:17]}  Qxd7 {[%clk 0:01:40]} 15. f3 {[%clk 0:02:16]}  exf3 {[%clk 0:01:35]} 16. Qxf3 {[%clk 0:02:17]}  Bc7 {[%clk 0:01:26]} 17. Ba3 {[%clk 0:02:14]}  Rf6 {[%clk 0:01:18]} 18. Rad1 {[%clk 0:02:15]}  Rg6 {[%clk 0:01:14]} 19. d5 {[%clk 0:02:16]}  cxd5 {[%clk 0:01:06]} 20. cxd5 {[%clk 0:02:15]}  Rg3 {[%clk 0:01:00]} 21. dxe6 {[%clk 0:02:13]}  Qxe6 {[%clk 0:00:56]} 22. Qxf5 {[%clk 0:02:02]}  Qxe3+ {[%clk 0:00:52]} 23. Kh1 {[%clk 0:02:01]}  h6 {[%clk 0:00:42]} 24. Qf7+ {[%clk 0:01:48]}  Kh8 {[%clk 0:00:40]} 25. Qxc7 {[%clk 0:01:48]} 1-0


[Site "https://www.chess.com"]

[Event "Titled Tuesday Blitz May 2 Late 2023"]
[White "Goltsev, Dmitry"]
[Black "Roux, Baptiste"]
[WhiteFideId "24176710"]
[BlackFideId "36017450"]
[WhiteElo "2336"]
[BlackElo "2077"]
[Result "1-0"]
[Round "04"]
[TimeControl "180+2"]
[Date "2023.05.02"]
[WhiteClock "0:01:55"]
[BlackClock "0:00:57"]

1. e4 {[%clk 0:03:00]}  e6 {[%clk 0:02:55]} 2. d4 {[%clk 0:03:00]}  d5 {[%clk 0:02:54]} 3. exd5 {[%clk 0:03:01]}  exd5 {[%clk 0:02:54]} 4. Nf3 {[%clk 0:03:02]}  Nc6 {[%clk 0:02:52]} 5. c4 {[%clk 0:03:02]}  Bb4+ {[%clk 0:02:50]} 6. Nc3 {[%clk 0:03:01]}  Nf6 {[%clk 0:02:46]} 7. Bd3 {[%clk 0:03:00]}  Qe7+ {[%clk 0:02:43]} 8. Be2 {[%clk 0:02:56]}  O-O {[%clk 0:02:34]} 9. O-O {[%clk 0:02:56]}  dxc4 {[%clk 0:02:32]} 10. Bxc4 {[%clk 0:02:57]}  Bg4 {[%clk 0:02:28]} 11. Bg5 {[%clk 0:02:56]}  Bxc3 {[%clk 0:02:25]} 12. bxc3 {[%clk 0:02:56]}  Rfe8 {[%clk 0:02:19]} 13. h3 {[%clk 0:02:53]}  Bh5 {[%clk 0:02:19]} 14. Rb1 {[%clk 0:02:53]}  Na5 {[%clk 0:02:08]} 15. Bb5 {[%clk 0:02:41]}  c6 {[%clk 0:01:56]} 16. Ba4 {[%clk 0:02:40]}  Nc4 {[%clk 0:01:39]} 17. Bb3 {[%clk 0:02:37]}  Nb6 {[%clk 0:01:31]} 18. Rc1 {[%clk 0:02:27]}  h6 {[%clk 0:01:23]} 19. Bh4 {[%clk 0:02:27]}  g5 {[%clk 0:01:17]} 20. Bg3 {[%clk 0:02:23]}  Ne4 {[%clk 0:01:17]} 21. Be5 {[%clk 0:02:10]}  Kh7 {[%clk 0:01:07]} 22. Re1 {[%clk 0:02:06]}  f5 {[%clk 0:01:07]} 23. g4 {[%clk 0:02:03]}  fxg4 {[%clk 0:01:00]} 24. hxg4 {[%clk 0:01:56]}  Bg6 {[%clk 0:01:01]} 25. Bc2 {[%clk 0:01:56]}  Nxc3 {[%clk 0:00:59]} 26. Bxg6+ {[%clk 0:01:55]}  Kxg6 {[%clk 0:00:59]} 27. Qd3+ {[%clk 0:01:55]}  Ne4 {[%clk 0:00:57]} 28. Qxe4+ {[%clk 0:01:55]} 1-0


[Site "https://www.chess.com"]

[Event "Titled Tuesday Blitz May 2 Late 2023"]
[White "Novik, Maxim"]
[Black "Hoffmann, Asa"]
[WhiteFideId "4102924"]
[BlackFideId "2001470"]
[WhiteElo "2287"]
[BlackElo "2117"]
[Result "1-0"]
[Round "04"]
[TimeControl "180+2"]
[Date "2023.05.02"]
[WhiteClock "0:01:25"]
[BlackClock "0:00:52"]

1. d4 {[%clk 0:03:00]}  Nf6 {[%clk 0:02:53]} 2. c4 {[%clk 0:03:00]}  c5 {[%clk 0:02:49]} 3. d5 {[%clk 0:02:57]}  e5 {[%clk 0:02:47]} 4. Nc3 {[%clk 0:02:55]}  d6 {[%clk 0:02:47]} 5. e4 {[%clk 0:02:55]}  Be7 {[%clk 0:02:47]} 6. Be2 {[%clk 0:02:53]}  Nbd7 {[%clk 0:02:47]} 7. Nf3 {[%clk 0:02:52]}  Nf8 {[%clk 0:02:47]} 8. O-O {[%clk 0:02:52]}  Ng6 {[%clk 0:02:47]} 9. Rb1 {[%clk 0:02:52]}  O-O {[%clk 0:02:46]} 10. b4 {[%clk 0:02:52]}  cxb4 {[%clk 0:02:46]} 11. Rxb4 {[%clk 0:02:52]}  b6 {[%clk 0:02:46]} 12. a4 {[%clk 0:02:52]}  Nd7 {[%clk 0:02:46]} 13. Be3 {[%clk 0:02:49]}  Nc5 {[%clk 0:02:45]} 14. a5 {[%clk 0:02:48]}  bxa5 {[%clk 0:02:44]} 15. Rb5 {[%clk 0:02:46]}  Bd7 {[%clk 0:02:38]} 16. Rb1 {[%clk 0:02:44]}  Rb8 {[%clk 0:02:35]} 17. Bxc5 {[%clk 0:02:38]}  dxc5 {[%clk 0:02:34]} 18. Nd2 {[%clk 0:02:37]}  Rb4 {[%clk 0:02:32]} 19. Na2 {[%clk 0:02:33]}  Rb6 {[%clk 0:02:28]} 20. g3 {[%clk 0:02:29]}  f5 {[%clk 0:02:19]} 21. Nc3 {[%clk 0:02:22]}  Rb4 {[%clk 0:02:15]} 22. exf5 {[%clk 0:02:07]}  Bxf5 {[%clk 0:02:14]} 23. Nde4 {[%clk 0:02:07]}  Qb6 {[%clk 0:01:54]} 24. d6 {[%clk 0:01:44]}  Rxb1 {[%clk 0:01:46]} 25. Qd5+ {[%clk 0:01:42]}  Kh8 {[%clk 0:01:44]} 26. Rxb1 {[%clk 0:01:41]}  Qd8 {[%clk 0:01:07]} 27. dxe7 {[%clk 0:01:39]}  Qxe7 {[%clk 0:01:07]} 28. Rb7 {[%clk 0:01:36]}  Qe8 {[%clk 0:01:04]} 29. Rxa7 {[%clk 0:01:33]}  Qb8 {[%clk 0:00:55]} 30. Rb7 {[%clk 0:01:31]}  Qa8 {[%clk 0:00:52]} 31. Nxc5 {[%clk 0:01:25]} 1-0


[Site "https://www.chess.com"]

[Event "Titled Tuesday Blitz May 2 Late 2023"]
[White "Ezat, Mohamed"]
[Black "Lopez Del Alamo, Antonio"]
[WhiteFideId "10600906"]
[BlackFideId "2227339"]
[WhiteElo "2386"]
[BlackElo "2175"]
[Result "1/2-1/2"]
[Round "04"]
[TimeControl "180+2"]
[Date "2023.05.02"]
[WhiteClock "0:00:56"]
[BlackClock "0:00:09"]

1. e4 {[%clk 0:03:00]}  c5 {[%clk 0:02:59]} 2. d4 {[%clk 0:03:00]}  cxd4 {[%clk 0:02:58]} 3. c3 {[%clk 0:03:00]}  d3 {[%clk 0:02:58]} 4. Bxd3 {[%clk 0:02:59]}  Nc6 {[%clk 0:02:56]} 5. Nf3 {[%clk 0:02:59]}  g6 {[%clk 0:02:56]} 6. O-O {[%clk 0:02:59]}  Bg7 {[%clk 0:02:57]} 7. Re1 {[%clk 0:02:59]}  d6 {[%clk 0:02:58]} 8. h3 {[%clk 0:02:58]}  Nf6 {[%clk 0:02:58]} 9. Na3 {[%clk 0:02:58]}  O-O {[%clk 0:02:57]} 10. Nc4 {[%clk 0:02:58]}  b5 {[%clk 0:02:55]} 11. Ne3 {[%clk 0:02:58]}  Rb8 {[%clk 0:02:56]} 12. Nd5 {[%clk 0:02:57]}  e6 {[%clk 0:02:52]} 13. Nxf6+ {[%clk 0:02:56]}  Bxf6 {[%clk 0:02:53]} 14. Bh6 {[%clk 0:02:55]}  Re8 {[%clk 0:02:53]} 15. Qd2 {[%clk 0:02:54]}  b4 {[%clk 0:02:49]} 16. c4 {[%clk 0:02:51]}  a5 {[%clk 0:02:41]} 17. Rad1 {[%clk 0:02:51]}  Qb6 {[%clk 0:02:41]} 18. Bc2 {[%clk 0:02:48]}  Rd8 {[%clk 0:02:38]} 19. Qf4 {[%clk 0:02:44]}  Be7 {[%clk 0:02:30]} 20. Bb3 {[%clk 0:02:31]}  Qc5 {[%clk 0:02:23]} 21. Ng5 {[%clk 0:02:16]}  Ne5 {[%clk 0:02:22]} 22. Kh1 {[%clk 0:02:03]}  f6 {[%clk 0:02:01]} 23. Nf3 {[%clk 0:02:02]}  Nf7 {[%clk 0:01:59]} 24. Qh4 {[%clk 0:01:59]}  g5 {[%clk 0:01:53]} 25. Qh5 {[%clk 0:01:58]}  Bd7 {[%clk 0:01:11]} 26. Bc2 {[%clk 0:01:57]}  Be8 {[%clk 0:01:07]} 27. Nd4 {[%clk 0:01:45]}  Qe5 {[%clk 0:00:52]} 28. f4 {[%clk 0:01:39]}  Qxf4 {[%clk 0:00:44]} 29. Nxe6 {[%clk 0:01:36]}  Qf2 {[%clk 0:00:43]} 30. Re2 {[%clk 0:01:30]}  Qg3 {[%clk 0:00:39]} 31. Ng7 {[%clk 0:01:07]}  d5 {[%clk 0:00:23]} 32. Nxe8 {[%clk 0:01:06]}  Rxe8 {[%clk 0:00:22]} 33. exd5 {[%clk 0:01:06]}  Bd6 {[%clk 0:00:22]} 34. Rxe8+ {[%clk 0:00:57]}  Rxe8 {[%clk 0:00:21]} 35. Bxh7+ {[%clk 0:00:57]}  Kxh7 {[%clk 0:00:14]} 36. Qxf7+ {[%clk 0:00:56]}  Kxh6 {[%clk 0:00:14]} 37. Qxf6+ {[%clk 0:00:56]}  Kh7 {[%clk 0:00:14]} 38. Qf7+ {[%clk 0:00:56]}  Kh6 {[%clk 0:00:14]} 39. Qf6+ {[%clk 0:00:55]}  Kh7 {[%clk 0:00:09]} 40. Qf7+ {[%clk 0:00:55]}  Kh6 {[%clk 0:00:09]} 41. Qf6+ {[%clk 0:00:56]} 1/2-1/2


[Site "https://www.chess.com"]

[Event "Titled Tuesday Blitz May 2 Late 2023"]
[White "Ozdemir, Serhan Berat"]
[Black "Bogaudinov, Rushan"]
[WhiteFideId "6374611"]
[BlackFideId "4129288"]
[WhiteElo "2015"]
[BlackElo "1967"]
[Result "1-0"]
[Round "04"]
[TimeControl "180+2"]
[Date "2023.05.02"]
[WhiteClock "0:00:28"]
[BlackClock "0:00:02"]

1. e4 {[%clk 0:03:00]}  c5 {[%clk 0:02:52]} 2. Nf3 {[%clk 0:02:50]}  Nc6 {[%clk 0:02:51]} 3. Bb5 {[%clk 0:02:48]}  Qb6 {[%clk 0:02:49]} 4. Nc3 {[%clk 0:02:37]}  e6 {[%clk 0:02:45]} 5. O-O {[%clk 0:02:19]}  a6 {[%clk 0:02:41]} 6. Bxc6 {[%clk 0:02:08]}  Qxc6 {[%clk 0:02:42]} 7. d4 {[%clk 0:02:08]}  cxd4 {[%clk 0:02:40]} 8. Qxd4 {[%clk 0:02:07]}  d6 {[%clk 0:02:17]} 9. Rd1 {[%clk 0:02:03]}  b5 {[%clk 0:01:58]} 10. Bf4 {[%clk 0:02:01]}  Bb7 {[%clk 0:01:46]} 11. Bxd6 {[%clk 0:01:52]}  Bxd6 {[%clk 0:01:45]} 12. Qxd6 {[%clk 0:01:53]}  Qxd6 {[%clk 0:01:45]} 13. Rxd6 {[%clk 0:01:53]}  Nf6 {[%clk 0:01:39]} 14. e5 {[%clk 0:01:19]}  Nd7 {[%clk 0:01:27]} 15. Re1 {[%clk 0:01:17]}  Ke7 {[%clk 0:01:20]} 16. Ne4 {[%clk 0:01:09]}  Bxe4 {[%clk 0:01:16]} 17. Rxe4 {[%clk 0:01:08]}  Nxe5 {[%clk 0:01:07]} 18. Nxe5 {[%clk 0:01:08]}  Kxd6 {[%clk 0:01:07]} 19. Nxf7+ {[%clk 0:01:08]}  Kd5 {[%clk 0:00:49]} 20. Re5+ {[%clk 0:01:08]}  Kd4 {[%clk 0:00:49]} 21. c3+ {[%clk 0:01:08]}  Kd3 {[%clk 0:00:49]} 22. Nxh8 {[%clk 0:00:57]}  Rxh8 {[%clk 0:00:50]} 23. Rxe6 {[%clk 0:00:55]}  Ra8 {[%clk 0:00:45]} 24. f4 {[%clk 0:00:52]}  Kc2 {[%clk 0:00:39]} 25. Re2+ {[%clk 0:00:52]}  Kb1 {[%clk 0:00:38]} 26. a3 {[%clk 0:00:51]}  h5 {[%clk 0:00:36]} 27. Kf2 {[%clk 0:00:50]}  a5 {[%clk 0:00:31]} 28. Kg3 {[%clk 0:00:46]}  Rf8 {[%clk 0:00:28]} 29. Rf2 {[%clk 0:00:45]}  Rf5 {[%clk 0:00:27]} 30. Kh4 {[%clk 0:00:43]}  Ka2 {[%clk 0:00:21]} 31. h3 {[%clk 0:00:42]}  Kb3 {[%clk 0:00:19]} 32. g4 {[%clk 0:00:41]}  hxg4 {[%clk 0:00:20]} 33. hxg4 {[%clk 0:00:42]}  Rd5 {[%clk 0:00:19]} 34. f5 {[%clk 0:00:42]}  Kc4 {[%clk 0:00:11]} 35. g5 {[%clk 0:00:41]}  Kd3 {[%clk 0:00:09]} 36. f6 {[%clk 0:00:40]}  gxf6 {[%clk 0:00:09]} 37. gxf6 {[%clk 0:00:41]}  Ke3 {[%clk 0:00:05]} 38. f7 {[%clk 0:00:41]}  Kxf2 {[%clk 0:00:05]} 39. f8=Q+ {[%clk 0:00:41]}  Ke3 {[%clk 0:00:05]} 40. Kg4 {[%clk 0:00:28]}  Kd3 {[%clk 0:00:04]} 41. Qf1+ {[%clk 0:00:28]}  Kd2 {[%clk 0:00:01]} 42. Qg2+ {[%clk 0:00:27]}  Kc1 {[%clk 0:00:01]} 43. Qxd5 {[%clk 0:00:27]}  Kxb2 {[%clk 0:00:02]} 44. Qxb5+ {[%clk 0:00:28]} 1-0


[Site "https://www.chess.com"]

[Event "Titled Tuesday Blitz May 2 Late 2023"]
[White "Santos Flores, Alberto"]
[Black "Napoli, Nicolo"]
[WhiteFideId "3601234"]
[BlackFideId "813702"]
[WhiteElo "2235"]
[BlackElo "2308"]
[Result "1-0"]
[Round "04"]
[TimeControl "180+2"]
[Date "2023.05.02"]
[WhiteClock "0:01:52"]
[BlackClock "0:00:53"]

1. e4 {[%clk 0:03:00]}  c5 {[%clk 0:02:59]} 2. Nf3 {[%clk 0:02:59]}  d6 {[%clk 0:02:58]} 3. Bb5+ {[%clk 0:02:57]}  Nd7 {[%clk 0:02:55]} 4. d4 {[%clk 0:02:57]}  a6 {[%clk 0:02:54]} 5. Bxd7+ {[%clk 0:02:56]}  Qxd7 {[%clk 0:02:55]} 6. Nc3 {[%clk 0:02:53]}  cxd4 {[%clk 0:02:54]} 7. Qxd4 {[%clk 0:02:53]}  Nf6 {[%clk 0:02:55]} 8. Bg5 {[%clk 0:02:52]}  b5 {[%clk 0:02:37]} 9. O-O-O {[%clk 0:02:51]}  e5 {[%clk 0:02:15]} 10. Qd3 {[%clk 0:02:49]}  Bb7 {[%clk 0:02:05]} 11. Bxf6 {[%clk 0:02:38]}  gxf6 {[%clk 0:02:06]} 12. Nd5 {[%clk 0:02:39]}  Bxd5 {[%clk 0:02:00]} 13. Qxd5 {[%clk 0:02:40]}  Rc8 {[%clk 0:01:59]} 14. Kb1 {[%clk 0:02:38]}  Qe6 {[%clk 0:01:55]} 15. Nh4 {[%clk 0:02:36]}  Qxd5 {[%clk 0:01:47]} 16. Rxd5 {[%clk 0:02:36]}  Rg8 {[%clk 0:01:39]} 17. g3 {[%clk 0:02:35]}  Kd7 {[%clk 0:01:34]} 18. Nf5 {[%clk 0:02:33]}  Ke6 {[%clk 0:01:34]} 19. Rhd1 {[%clk 0:02:32]}  Rc6 {[%clk 0:01:33]} 20. f3 {[%clk 0:02:21]}  h5 {[%clk 0:01:31]} 21. a4 {[%clk 0:02:21]}  bxa4 {[%clk 0:01:30]} 22. Ra5 {[%clk 0:02:21]}  Be7 {[%clk 0:01:22]} 23. Rxa4 {[%clk 0:02:18]}  Rgc8 {[%clk 0:01:22]} 24. c3 {[%clk 0:02:18]}  Rb6 {[%clk 0:01:22]} 25. Kc2 {[%clk 0:02:16]}  Rc5 {[%clk 0:01:21]} 26. Rda1 {[%clk 0:02:14]}  Rcb5 {[%clk 0:01:18]} 27. b4 {[%clk 0:02:14]}  Bf8 {[%clk 0:00:58]} 28. Rxa6 {[%clk 0:02:12]}  d5 {[%clk 0:00:58]} 29. Rxb6+ {[%clk 0:02:01]}  Rxb6 {[%clk 0:00:59]} 30. Ra8 {[%clk 0:01:53]}  dxe4 {[%clk 0:00:53]} 31. fxe4 {[%clk 0:01:52]} 1-0


[Site "https://www.chess.com"]

[Event "Titled Tuesday Blitz May 2 Late 2023"]
[White "Manukian, Artak"]
[Black "Rodriguez Santiago, Jaime"]
[WhiteFideId "13301373"]
[BlackFideId "3100898"]
[WhiteElo "2130"]
[BlackElo "2025"]
[Result "1-0"]
[Round "04"]
[TimeControl "180+2"]
[Date "2023.05.02"]
[WhiteClock "0:01:28"]
[BlackClock "0:00:47"]

1. e4 {[%clk 0:03:00]}  c6 {[%clk 0:02:59]} 2. d4 {[%clk 0:03:00]}  d5 {[%clk 0:02:59]} 3. e5 {[%clk 0:03:00]}  Bf5 {[%clk 0:02:58]} 4. c4 {[%clk 0:03:01]}  e6 {[%clk 0:02:57]} 5. Nc3 {[%clk 0:03:01]}  Nd7 {[%clk 0:02:48]} 6. Nf3 {[%clk 0:03:00]}  h6 {[%clk 0:02:48]} 7. Qb3 {[%clk 0:02:58]}  b6 {[%clk 0:02:32]} 8. cxd5 {[%clk 0:02:53]}  cxd5 {[%clk 0:02:31]} 9. Be3 {[%clk 0:02:52]}  Ne7 {[%clk 0:02:26]} 10. Nb5 {[%clk 0:02:49]}  Nc6 {[%clk 0:02:21]} 11. Rc1 {[%clk 0:02:48]}  Rc8 {[%clk 0:02:20]} 12. Be2 {[%clk 0:02:45]}  Bb4+ {[%clk 0:02:17]} 13. Kf1 {[%clk 0:02:44]}  Be7 {[%clk 0:02:15]} 14. h3 {[%clk 0:02:32]}  O-O {[%clk 0:02:15]} 15. Qa4 {[%clk 0:02:10]}  a5 {[%clk 0:01:46]} 16. Kg1 {[%clk 0:02:03]}  Nb4 {[%clk 0:01:44]} 17. Kh2 {[%clk 0:01:58]}  Bc2 {[%clk 0:01:40]} 18. b3 {[%clk 0:01:57]}  Bd3 {[%clk 0:01:32]} 19. Bxd3 {[%clk 0:01:48]}  Nxd3 {[%clk 0:01:31]} 20. Rxc8 {[%clk 0:01:48]}  Qxc8 {[%clk 0:01:32]} 21. Nd6 {[%clk 0:01:43]}  Bxd6 {[%clk 0:01:29]} 22. exd6 {[%clk 0:01:43]}  Nb4 {[%clk 0:01:00]} 23. Rc1 {[%clk 0:01:37]}  Qb8 {[%clk 0:00:53]} 24. Qxd7 {[%clk 0:01:34]}  Rd8 {[%clk 0:00:53]} 25. Qc7 {[%clk 0:01:32]}  Qa8 {[%clk 0:00:49]} 26. d7 {[%clk 0:01:29]}  Nxa2 {[%clk 0:00:47]} 27. Qxd8+ {[%clk 0:01:28]} 1-0


[Site "https://www.chess.com"]